2CCN - Level 2 Cost Centre Name,,9CCN - Level 9 Cost Centre Name,9CCC - Level 9 Cost Centre Code,9AN - Level 9 Account Name,9AC - Level 9 Account Code,Date posted,Date of transaction,Merchant Name,Merchant City,Originating Account Name,Originating Account Number,MCC/SIC Code,MCC Description,Original Amount,Currency,Conversion Rate,Billed Amount,Debit Credit,Reference Nbr,Statement Cycle,Account Name
Gloucester City Council,23UE,TOURISM MARKETING,LT100,EXHIBITS AND COLLECTIONS,5038,2016-02-18,2016-02-17,PAYPAL *SHOPINCLTD,35314369001,REDACTED,471565******4015,5169,CHEMICALS AND ALLIED PRODUCTS NOT ELSEWH,3.49,Pound Sterling (826),1,3.49,Debit,74998866048606832709167,2016-03-02,GLOUCESTER CC
Gloucester City Council,23UE,TOURISM MARKETING,LT100,EXHIBITS AND COLLECTIONS,5038,2016-02-23,2016-02-22,BOOTS GLOUCESTER,GLOUCESTER,REDACTED,471565******4015,5912,DRUG STORES  PHARMACIES,22.5,Pound Sterling (826),1,22.5,Debit,74698086054040226253153,2016-03-02,GLOUCESTER CC
Gloucester City Council,23UE,TOURISM MARKETING,LT100,EXHIBITS AND COLLECTIONS,5038,2016-02-23,2016-02-22,THE RANGE,GLOUCESTER,REDACTED,471565******4015,5311,DEPARTMENT STORES,62.5,Pound Sterling (826),1,62.5,Debit,74579156054004678231005,2016-03-02,GLOUCESTER CC
Gloucester City Council,23UE,TOURISM MARKETING,LT100,EXHIBITS AND COLLECTIONS,5038,2016-03-01,2016-02-29,PAYPAL *RJWPLUMBING,35314369001,REDACTED,471565******4015,4816,COMPUTER NETWORK/INFORMATION SERVICES,29.99,Pound Sterling (826),1,29.99,Debit,74998766060608917625362,2016-03-02,GLOUCESTER CC
Gloucester City Council,23UE,HOMELESSNESS,CH120,BOARD AND LODGING,5515,2016-02-03,2016-02-02,TRAVELODGE WEBSITE,RESERVATION,REDACTED,471565******1443,3615,TRAVELODGE,146,Pound Sterling (826),1,146,Debit,74424716033298130580942,2016-03-02,GLOUCESTER CC
Gloucester City Council,23UE,HOMELESSNESS,CH120,BOARD AND LODGING,5515,2016-02-08,2016-02-07,TRAVELODGE WEBSITE,RESERVATION,REDACTED,471565******1443,3615,TRAVELODGE,47,Pound Sterling (826),1,47,Debit,74424716038298187814447,2016-03-02,GLOUCESTER CC
Gloucester City Council,23UE,HOMELESSNESS,CH120,BOARD AND LODGING,5515,2016-02-11,2016-02-10,ROOMSBOOKED LTD,CHELTENHAM,REDACTED,471565******1443,7011,LODGING  HOTELS  MOTELS  RESORTS,83,Pound Sterling (826),1,83,Debit,74678586042060266984580,2016-03-02,GLOUCESTER CC
Gloucester City Council,23UE,HOMELESSNESS,CH120,BOARD AND LODGING,5515,2016-03-01,2016-02-29,ROOMSBOOKED LTD,CHELTENHAM,REDACTED,471565******1443,7011,LODGING  HOTELS  MOTELS  RESORTS,435,Pound Sterling (826),1,435,Debit,74678586061090147708680,2016-03-02,GLOUCESTER CC
Gloucester City Council,23UE,HEAD OF REGENERATION & ECO DEV,GO102,POSTAGES,5400,2016-02-09,2016-02-08,NOCHEX-FASTSPEED COURI,LEEDS,REDACTED,471565******8223,4215,COURIER SERVICES-AIR OR GROUND FREIGHT FORWARDERS,172.5,Pound Sterling (826),1,172.5,Debit,74119756039605480188706,2016-03-02,GLOUCESTER CC
Gloucester City Council,23UE,DOCKS COMPLEX - SERVICES,RB100,CATERING PROVISIONS -FOOD,5110,2016-02-09,2016-02-08,SAINSBURYS SUPERMA,GLOUCESTER QU,REDACTED,471565******8223,5411,GROCERY STORES  SUPERMARKETS,20.8,Pound Sterling (826),1,20.8,Debit,74579156040007973877916,2016-03-02,GLOUCESTER CC
Gloucester City Council,23UE,DOCKS COMPLEX - SERVICES,RB100,CATERING PROVISIONS -FOOD,5110,2016-02-24,2016-02-23,SAINSBURYS SUPERMA,GLOUCESTER QU,REDACTED,471565******8223,5411,GROCERY STORES  SUPERMARKETS,4.2,Pound Sterling (826),1,4.2,Debit,74579156055001378269490,2016-03-02,GLOUCESTER CC
Gloucester City Council,23UE,DOCKS COMPLEX - SERVICES,RB100,OPERATIONAL EQUIPMENT <5000,5012,2016-03-01,2016-02-29,TIMPSON LTD,GLOUCESTER,REDACTED,471565******8223,7251,SHOE REPAIR SHOPS  SHOE SHINE PARLORS & HAT CLEANING SHOPS,9,Pound Sterling (826),1,9,Debit,74579156060008468375528,2016-03-02,GLOUCESTER CC
Gloucester City Council,23UE,DOCKS COMPLEX - SERVICES,RB100,CATERING PROVISIONS -FOOD,5110,2016-03-01,2016-02-29,SAINSBURYS SUPERMA,GLOUCESTER QU,REDACTED,471565******8223,5411,GROCERY STORES  SUPERMARKETS,17.1,Pound Sterling (826),1,17.1,Debit,74579156061000878165788,2016-03-02,GLOUCESTER CC
Gloucester City Council,23UE,HOUSING WORKS IN DEFAULT,HD500,CLEARANCE AND CLEANSING FEES,5384,2016-03-02,2016-03-01,MIPERMIT PARKING-DOM,INTERNET,REDACTED,471565******8476,7523,AUTOMOBILE PARKING LOTS AND GARAGES,20,Pound Sterling (826),1,20,Debit,74745106062010069242034,2016-03-02,GLOUCESTER CC
Gloucester City Council,23UE,HOUSING STRATEGY & ENABLING,CH110,FEES FOR SERVICES RECEIVED,5350,2016-02-22,2016-02-19,WWW.HOUSING.ORG.UK,LONDON WC1V,REDACTED,471565******3663,8999,PROFESSIONAL SERVICES NOT ELSEWHERE CLASSIFIED,63.9,Pound Sterling (826),1,63.9,Debit,74085326051264000005951,2016-03-02,GLOUCESTER CC
Gloucester City Council,23UE,FOLK MUSEUM,LM210,PUBLICATIONS FOR SALE,5064,2016-02-03,2016-02-02,HANCOCK CASH AND CARRY LT,LOUGHBOROUGH,REDACTED,471565******9991,5300,WHOLESALE CLUBS,178.12,Pound Sterling (826),1,178.12,Debit,74463656033890342498085,2016-03-02,GLOUCESTER CC
Gloucester City Council,23UE,FOLK MUSEUM,LM210,PUBLICATIONS FOR SALE,5064,2016-02-03,2016-02-02,HANCOCK CASH AND CARRY LT,LOUGHBOROUGH,REDACTED,471565******9991,5300,WHOLESALE CLUBS,182.12,Pound Sterling (826),1,182.12,Debit,74463656033890342498135,2016-03-02,GLOUCESTER CC
Gloucester City Council,23UE,FOLK MUSEUM,LM210,EXHIBITS AND COLLECTIONS,5038,2016-02-08,2016-02-05,B & Q,GLOUCESTER GL,REDACTED,471565******9991,5211,LUMBER AND BUILDING MATERIALS STORES,30.66,Pound Sterling (826),1,30.66,Debit,74579156037003674843864,2016-03-02,GLOUCESTER CC
Gloucester City Council,23UE,CITY MUSEUM CATERING,LM202,CATERING PROVISIONS -FOOD,5110,2016-02-15,2016-02-12,BOOKER LIMITED GLOUCESTER,GLOUCESTER,REDACTED,471565******9991,5811,CATERERS,123.57,Pound Sterling (826),1,123.57,Debit,74463666043920433314284,2016-03-02,GLOUCESTER CC
Gloucester City Council,23UE,CITY MUSEUM CATERING,LM202,CATERING PROVISIONS -FOOD,5110,2016-02-15,2016-02-12,BOOKER LIMITED GLOUCESTER,GLOUCESTER,REDACTED,471565******9991,5811,CATERERS,190.35,Pound Sterling (826),1,190.35,Debit,74463666043920433314292,2016-03-02,GLOUCESTER CC
Gloucester City Council,23UE,CITY MUSEUM AND ART GALLERY,LM200,ADVERTISING AND PUBLICITY,5702,2016-02-23,2016-02-22,HOOTSUITE MEDIA INC.,778-588-9767,REDACTED,471565******9991,7399,BUSINESS SERVICES NOT ELSEWHERE CLASSIFIED,50.33,Pound Sterling (826),1,50.33,Debit,24510766053000096834762,2016-03-02,GLOUCESTER CC
Gloucester City Council,23UE,FOLK MUSEUM,LM210,ADVERTISING AND PUBLICITY,5702,2016-02-23,2016-02-22,HOOTSUITE MEDIA INC.,778-588-9767,REDACTED,471565******9991,7399,BUSINESS SERVICES NOT ELSEWHERE CLASSIFIED,50.33,Pound Sterling (826),1,50.33,Debit,24510766053000096834762,2016-03-02,GLOUCESTER CC
Gloucester City Council,23UE,FOLK MUSEUM,LM210,OPERATIONAL MATERIALS,5070,2016-02-29,2016-02-27,POST OFFICE COUNTER,MALVERN,REDACTED,471565******9991,9402,POSTAGE STAMPS,18.65,Pound Sterling (826),1,18.65,Debit,74424716058194288747476,2016-03-02,GLOUCESTER CC
Gloucester City Council,23UE,CITY MUSEUM CATERING,LM202,CATERING PROVISIONS -FOOD,5110,2016-03-02,2016-03-01,BOOKER LIMITED GLOUCESTER,GLOUCESTER,REDACTED,471565******9991,5811,CATERERS,153.38,Pound Sterling (826),1,153.38,Debit,74463666061910619423386,2016-03-02,GLOUCESTER CC
Gloucester City Council,23UE,GUILDHALL BAR AND CAF�,LA210,HIRE OF EQUIPMENT,5020,2016-02-08,2016-02-05,CURRYS S/S,GLOUCESTER,REDACTED,471565******2470,5732,ELECTRONIC SALES,69.99,Pound Sterling (826),1,69.99,Debit,74698166037030057502234,2016-03-02,GLOUCESTER CC
Gloucester City Council,23UE,GLOUCESTER GUILDHALL,LA100,GENERAL REPAIR/MAINT BUILDINGS,3000,2016-02-10,2016-02-09,B & Q,GLOUCESTER GL,REDACTED,471565******2470,5211,LUMBER AND BUILDING MATERIALS STORES,89,Pound Sterling (826),1,89,Debit,74579156041007074939580,2016-03-02,GLOUCESTER CC
Gloucester City Council,23UE,BLACKFRIARS,LA609,HIRE OF EQUIPMENT,5020,2016-02-10,2016-02-09,GLASSJACKS LTD,EASTLEIGH,REDACTED,471565******2470,5950,GLASSWARE AND CRYSTAL STORES,59.87,Pound Sterling (826),1,59.87,Debit,74463656040890413239641,2016-03-02,GLOUCESTER CC
Gloucester City Council,23UE,GUILDHALL EVENTS,LA200,FEES FOR SERVICES RECEIVED,5350,2016-02-15,2016-02-12,MIPERMIT PARKING-DOM,INTERNET,REDACTED,471565******2470,7523,AUTOMOBILE PARKING LOTS AND GARAGES,20,Pound Sterling (826),1,20,Debit,74745106044080088774054,2016-03-02,GLOUCESTER CC
Gloucester City Council,23UE,GUILDHALL BAR AND CAF�,LA210,HIRE OF EQUIPMENT,5020,2016-02-15,2016-02-12,IKEA,BRISTOL 264,REDACTED,471565******2470,5719,MISCELLANEOUS HOUSE FURNISHING SPECIALITY STORES,16.4,Pound Sterling (826),1,16.4,Debit,74424716043012139093536,2016-03-02,GLOUCESTER CC
Gloucester City Council,23UE,GUILDHALL BAR AND CAF�,LA210,CATERING PROVISIONS -FOOD,5110,2016-02-16,2016-02-15,TESCO STORES 6654,GLOUCESTER,REDACTED,471565******2470,5411,GROCERY STORES  SUPERMARKETS,50.04,Pound Sterling (826),1,50.04,Debit,74698086047090139460635,2016-03-02,GLOUCESTER CC
Gloucester City Council,23UE,GUILDHALL BAR AND CAF�,LA210,CATERING PROVISIONS -FOOD,5110,2016-02-16,2016-02-15,ASDA SUPERSTORE,GLOUCESTER,REDACTED,471565******2470,5411,GROCERY STORES  SUPERMARKETS,7,Pound Sterling (826),1,7,Debit,74698176047090198252849,2016-03-02,GLOUCESTER CC
Gloucester City Council,23UE,GLOUCESTER GUILDHALL,LA100,GENERAL REPAIR/MAINT BUILDINGS,3000,2016-02-16,2016-02-15,B & Q,GLOUCESTER GL,REDACTED,471565******2470,5211,LUMBER AND BUILDING MATERIALS STORES,43,Pound Sterling (826),1,43,Debit,74579156047005976034306,2016-03-02,GLOUCESTER CC
Gloucester City Council,23UE,GUILDHALL BAR AND CAF�,LA210,CATERING PROVISIONS -FOOD,5110,2016-02-17,2016-02-16,ICELAND,GLOUCESTER,REDACTED,471565******2470,5411,GROCERY STORES  SUPERMARKETS,7.49,Pound Sterling (826),1,7.49,Debit,74698166048000124111605,2016-03-02,GLOUCESTER CC
Gloucester City Council,23UE,GUILDHALL CINEMA,LA202,CATERING PROVISIONS -FOOD,5110,2016-02-19,2016-02-18,ICELAND,GLOUCESTER,REDACTED,471565******2470,5411,GROCERY STORES  SUPERMARKETS,12.94,Pound Sterling (826),1,12.94,Debit,74698166050020265973006,2016-03-02,GLOUCESTER CC
Gloucester City Council,23UE,BLACKFRIARS,LA609,HIRE OF EQUIPMENT,5020,2016-02-19,2016-02-18,GLASSJACKS LTD,EASTLEIGH,REDACTED,471565******2470,5950,GLASSWARE AND CRYSTAL STORES,132.47,Pound Sterling (826),1,132.47,Debit,74463656050890504808988,2016-03-02,GLOUCESTER CC
Gloucester City Council,23UE,GUILDHALL BAR AND CAF�,LA210,CATERING PROVISIONS -FOOD,5110,2016-02-22,2016-02-19,SAINSBURYS S/MKTS,GLOUCESTER 22,REDACTED,471565******2470,5411,GROCERY STORES  SUPERMARKETS,8,Pound Sterling (826),1,8,Debit,74579156051006373340612,2016-03-02,GLOUCESTER CC
Gloucester City Council,23UE,GUILDHALL BAR AND CAF�,LA210,CATERING PROVISIONS -FOOD,5110,2016-02-22,2016-02-20,ALDI,GLOUCESTER,REDACTED,471565******2470,5411,GROCERY STORES  SUPERMARKETS,15.05,Pound Sterling (826),1,15.05,Debit,74019476052495001010284,2016-03-02,GLOUCESTER CC
Gloucester City Council,23UE,GUILDHALL BAR AND CAF�,LA210,CATERING PROVISIONS -FOOD,5110,2016-02-23,2016-02-22,HOLLAND & BARRETT,GLOUCESTER,REDACTED,471565******2470,5999,MISCELLANEOUS AND RETAIL STORES,7.36,Pound Sterling (826),1,7.36,Debit,74579156054009578013890,2016-03-02,GLOUCESTER CC
Gloucester City Council,23UE,GUILDHALL BAR AND CAF�,LA210,CATERING PROVISIONS -FOOD,5110,2016-02-24,2016-02-23,ASDA SUPERSTORE,GLOUCESTER,REDACTED,471565******2470,5411,GROCERY STORES  SUPERMARKETS,49.18,Pound Sterling (826),1,49.18,Debit,74698176055050154046071,2016-03-02,GLOUCESTER CC
Gloucester City Council,23UE,GUILDHALL BAR AND CAF�,LA210,CATERING PROVISIONS -FOOD,5110,2016-02-26,2016-02-25,ICELAND,GLOUCESTER,REDACTED,471565******2470,5411,GROCERY STORES  SUPERMARKETS,11,Pound Sterling (826),1,11,Debit,74698166057070137111759,2016-03-02,GLOUCESTER CC
Gloucester City Council,23UE,GUILDHALL BAR AND CAF�,LA210,CATERING PROVISIONS -FOOD,5110,2016-02-26,2016-02-25,TESCO STORES (6819),GLOUCESTER,REDACTED,471565******2470,5411,GROCERY STORES  SUPERMARKETS,15.75,Pound Sterling (826),1,15.75,Debit,74698086057070284609746,2016-03-02,GLOUCESTER CC
Gloucester City Council,23UE,GUILDHALL BAR AND CAF�,LA210,CATERING PROVISIONS -FOOD,5110,2016-02-29,2016-02-18,TESCO STORES 3074,GLOUCESTER,REDACTED,471565******2470,5411,GROCERY STORES  SUPERMARKETS,22.49,Pound Sterling (826),1,22.49,Debit,74698176059080702508476,2016-03-02,GLOUCESTER CC
Gloucester City Council,23UE,GUILDHALL BAR AND CAF�,LA210,CATERING PROVISIONS -FOOD,5110,2016-03-01,2016-02-29,ALDI,GLOUCESTER,REDACTED,471565******2470,5411,GROCERY STORES  SUPERMARKETS,23.24,Pound Sterling (826),1,23.24,Debit,74019476061495000939078,2016-03-02,GLOUCESTER CC
Gloucester City Council,23UE,GUILDHALL BAR AND CAF�,LA210,CATERING PROVISIONS -FOOD,5110,2016-03-02,2016-03-01,ASDA SUPERSTORE,GLOUCESTER,REDACTED,471565******2470,5411,GROCERY STORES  SUPERMARKETS,46.57,Pound Sterling (826),1,46.57,Debit,74698176062010161344043,2016-03-02,GLOUCESTER CC
Gloucester City Council,23UE,FINANCIAL SERVICES,RT200,PUBLIC TRANSPORTATION,4061,2016-02-09,2016-02-08,TRAINLINE,RAIL TICKETS,REDACTED,471565******4841,4112,PASSENGER RAILWAYS,161.16,Pound Sterling (826),1,161.16,Debit,74998866039605661114185,2016-03-02,GLOUCESTER CC
Gloucester City Council,23UE,MEMBERS SUPPORT,RC300,PUBLIC TRANSPORTATION,4061,2016-02-09,2016-02-08,TRAINLINE,RAIL TICKETS,REDACTED,471565******4841,4112,PASSENGER RAILWAYS,87.62,Pound Sterling (826),1,87.62,Debit,74998866039605661122261,2016-03-02,GLOUCESTER CC
Gloucester City Council,23UE,FINANCIAL SERVICES,RT200,PUBLIC TRANSPORTATION,4061,2016-02-09,2016-02-08,TRAINLINE,RAIL TICKETS,REDACTED,471565******4841,4112,PASSENGER RAILWAYS,172.38,Pound Sterling (826),1,172.38,Debit,74998866039605661113633,2016-03-02,GLOUCESTER CC
Gloucester City Council,23UE,POLLUTION CONTROL,HE300,PUBLIC TRANSPORTATION,4061,2016-02-10,2016-02-09,TRAINLINE,RAIL TICKETS,REDACTED,471565******4841,4112,PASSENGER RAILWAYS,73.54,Pound Sterling (826),1,73.54,Debit,74998866040605681838141,2016-03-02,GLOUCESTER CC
Gloucester City Council,23UE,MEMBERS SUPPORT,RC300,PUBLIC TRANSPORTATION,4061,2016-02-10,2016-02-09,TRAINLINE,RAIL TICKETS,REDACTED,471565******4841,4112,PASSENGER RAILWAYS,172.38,Pound Sterling (826),1,172.38,Debit,74998866040605681839834,2016-03-02,GLOUCESTER CC
Gloucester City Council,23UE,CONTACT CENTRE,RB300,STATIONERY,5302,2016-02-11,2016-02-10,WWW.VIRODISPLAY.CO.UK,INTERNET,REDACTED,471565******4841,5999,MISCELLANEOUS AND RETAIL STORES,8.9,Pound Sterling (826),1,8.9,Debit,74745106042060054741750,2016-03-02,GLOUCESTER CC
Gloucester City Council,23UE,VEHICLES,RS140,VEHICLE LICENCES,4015,2016-02-16,2016-02-15,WWW.DVLA.GOV.UK,VEHICLE LICEN,REDACTED,471565******4841,9399,GOVERNMENT SERVICES NOT ELSEWHERE CLASSIFIED,227.5,Pound Sterling (826),1,227.5,Debit,74579156047004871191758,2016-03-02,GLOUCESTER CC
Gloucester City Council,23UE,ENVIRONMENTAL PLANNING,LM340,PUBLIC TRANSPORTATION,4061,2016-02-16,2016-02-15,TRAINLINE,RAIL TICKETS,REDACTED,471565******4841,4112,PASSENGER RAILWAYS,10.05,Pound Sterling (826),1,10.05,Debit,74998866046606795038986,2016-03-02,GLOUCESTER CC
Gloucester City Council,23UE,PLANNING POLICY & HERITAGE,PT300,PUBLIC TRANSPORTATION,4061,2016-02-17,2016-02-16,TRAINLINE,RAIL TICKETS,REDACTED,471565******4841,4112,PASSENGER RAILWAYS,172.38,Pound Sterling (826),1,172.38,Debit,74998866047606816226452,2016-03-02,GLOUCESTER CC
Gloucester City Council,23UE,ENVIRONMENTAL PLANNING,LM340,PUBLIC TRANSPORTATION,4061,2016-02-17,2016-02-16,TRAINLINE,RAIL TICKETS,REDACTED,471565******4841,4112,PASSENGER RAILWAYS,10.05,Pound Sterling (826),1,10.05,Debit,74998866047606816218525,2016-03-02,GLOUCESTER CC
Gloucester City Council,23UE,POLLUTION CONTROL,HE300,PUBLIC TRANSPORTATION,4061,2016-02-23,2016-02-22,TRAINLINE,RAIL TICKETS,REDACTED,471565******4841,4112,PASSENGER RAILWAYS,73.54,Pound Sterling (826),1,73.54,Debit,74998866053607928847152,2016-03-02,GLOUCESTER CC
Gloucester City Council,23UE,GROUP MGR CULT SER & TOURISM,GR102,PUBLIC TRANSPORTATION,4061,2016-02-24,2016-02-23,TRAINLINE,RAIL TICKETS,REDACTED,471565******4841,4112,PASSENGER RAILWAYS,10.05,Pound Sterling (826),1,10.05,Debit,74998866054607949133243,2016-03-02,GLOUCESTER CC
Gloucester City Council,23UE,MEMBERS SUPPORT,RC300,PUBLIC TRANSPORTATION,4061,2016-02-26,2016-02-25,TRAINLINE,RAIL TICKETS,REDACTED,471565******4841,4112,PASSENGER RAILWAYS,172.38,Pound Sterling (826),1,172.38,Debit,74998866056607986991139,2016-03-02,GLOUCESTER CC
Gloucester City Council,23UE,POLLUTION CONTROL,HE300,PUBLIC TRANSPORTATION,4061,2016-03-01,2016-02-29,TRAINLINE,RAIL TICKETS,REDACTED,471565******4841,4112,PASSENGER RAILWAYS,73.54,Pound Sterling (826),1,73.54,Debit,74998866060608068720572,2016-03-02,GLOUCESTER CC
Gloucester City Council,23UE,GUILDHALL CINEMA,LA202,ADVERTISING AND PUBLICITY,5702,2016-02-04,2016-02-03,WWW.INSTANTPRINT.C,01709 382202,REDACTED,471565******6962,7338,QUICK-COPY AND REPRODUCTION SERVICES,32.99,Pound Sterling (826),1,32.99,Debit,74579156035009074899549,2016-03-02,GLOUCESTER CC
Gloucester City Council,23UE,GUILDHALL EVENTS,LA200,FEES FOR SERVICES RECEIVED,5350,2016-02-05,2016-02-04,MIPERMIT PARKING-DOM,INTERNET,REDACTED,471565******6962,7523,AUTOMOBILE PARKING LOTS AND GARAGES,10,Pound Sterling (826),1,10,Debit,74745106036020072053990,2016-03-02,GLOUCESTER CC
Gloucester City Council,23UE,GUILDHALL EVENTS,LA200,FEES FOR SERVICES RECEIVED,5350,2016-02-05,2016-02-04,MIPERMIT PARKING-DOM,INTERNET,REDACTED,471565******6962,7523,AUTOMOBILE PARKING LOTS AND GARAGES,10,Pound Sterling (826),1,10,Debit,74745106036020072054261,2016-03-02,GLOUCESTER CC
Gloucester City Council,23UE,GLOUCESTER GUILDHALL,LA100,GENERAL REPAIR/MAINT BUILDINGS,3000,2016-02-17,2016-02-16,B & Q,GLOUCESTER GL,REDACTED,471565******6962,5211,LUMBER AND BUILDING MATERIALS STORES,210.98,Pound Sterling (826),1,210.98,Debit,74579156048009873174669,2016-03-02,GLOUCESTER CC
Gloucester City Council,23UE,GLOUCESTER GUILDHALL,LA100,GENERAL REPAIR/MAINT BUILDINGS,3000,2016-02-18,2016-02-17,WILKO RETAIL LIMIT,GLOUCESTER 14,REDACTED,471565******6962,5722,HOUSEHOLD APPLIANCE STORES,15,Pound Sterling (826),1,15,Debit,74579156049008570733701,2016-03-02,GLOUCESTER CC
Gloucester City Council,23UE,GUILDHALL CINEMA,LA202,ADVERTISING AND PUBLICITY,5702,2016-02-18,2016-02-17,WWW.INSTANTPRINT.C,01709 382202,REDACTED,471565******6962,7338,QUICK-COPY AND REPRODUCTION SERVICES,31.99,Pound Sterling (826),1,31.99,Debit,74579156049009675051213,2016-03-02,GLOUCESTER CC
Gloucester City Council,23UE,GUILDHALL EVENTS,LA200,FEES FOR SERVICES RECEIVED,5350,2016-02-19,2016-02-18,MIPERMIT PARKING-DOM,INTERNET,REDACTED,471565******6962,7523,AUTOMOBILE PARKING LOTS AND GARAGES,30,Pound Sterling (826),1,30,Debit,74745106050020079493448,2016-03-02,GLOUCESTER CC
Gloucester City Council,23UE,GUILDHALL CINEMA,LA202,ADVERTISING AND PUBLICITY,5702,2016-02-22,2016-02-19,WWW.INSTANTPRINT.C,01709 382202,REDACTED,471565******6962,7338,QUICK-COPY AND REPRODUCTION SERVICES,31.99,Pound Sterling (826),1,31.99,Debit,74579156051004875720100,2016-03-02,GLOUCESTER CC
Gloucester City Council,23UE,GUILDHALL EVENTS,LA200,FEES FOR SERVICES RECEIVED,5350,2016-02-25,2016-02-24,MIPERMIT PARKING-DOM,INTERNET,REDACTED,471565******6962,7523,AUTOMOBILE PARKING LOTS AND GARAGES,10,Pound Sterling (826),1,10,Debit,74745106056060068938247,2016-03-02,GLOUCESTER CC
Gloucester City Council,23UE,GUILDHALL EVENTS,LA200,FEES FOR SERVICES RECEIVED,5350,2016-02-26,2016-02-25,MIPERMIT PARKING-DOM,INTERNET,REDACTED,471565******6962,7523,AUTOMOBILE PARKING LOTS AND GARAGES,10,Pound Sterling (826),1,10,Debit,74745106057070074397147,2016-03-02,GLOUCESTER CC
Gloucester City Council,23UE,GUILDHALL EVENTS,LA200,ADVERTISING AND PUBLICITY,5702,2016-02-26,2016-02-25,WWW.INSTANTPRINT.C,01709 382202,REDACTED,471565******6962,7338,QUICK-COPY AND REPRODUCTION SERVICES,56.99,Pound Sterling (826),1,56.99,Debit,74579156057006274734420,2016-03-02,GLOUCESTER CC
Gloucester City Council,23UE,GUILDHALL EVENTS,LA200,FEES FOR SERVICES RECEIVED,5350,2016-02-29,2016-02-26,MIPERMIT PARKING-DOM,INTERNET,REDACTED,471565******6962,7523,AUTOMOBILE PARKING LOTS AND GARAGES,10,Pound Sterling (826),1,10,Debit,74745106058080082434146,2016-03-02,GLOUCESTER CC
Gloucester City Council,23UE,GUILDHALL CINEMA,LA202,ADVERTISING AND PUBLICITY,5702,2016-02-29,2016-02-26,WWW.INSTANTPRINT.C,01709 382202,REDACTED,471565******6962,7338,QUICK-COPY AND REPRODUCTION SERVICES,25.99,Pound Sterling (826),1,25.99,Debit,74579156058007675724126,2016-03-02,GLOUCESTER CC
Gloucester City Council,23UE,GUILDHALL EVENTS,LA200,ADVERTISING AND PUBLICITY,5702,2016-03-01,2016-02-29,FACEBOOK QUVAL8JD72,www.fb.me/ads,REDACTED,471565******6962,7311,ADVERTISING SERVICES,29.01,Pound Sterling (826),1,29.01,Debit,74987506060593499621240,2016-03-02,GLOUCESTER CC
Gloucester City Council,23UE,BUSINESS TRANSFORMATION & TECH,RT700,COMPUTER CONSUMABLES,5422,2016-02-09,2016-02-08,PC WORLD,GLOUCESTER,REDACTED,471565******3318,5734,COMPUTER SOFTWARE STORES,42.94,Pound Sterling (826),1,42.94,Debit,74698166040040053065719,2016-03-02,GLOUCESTER CC
Gloucester City Council,23UE,BUSINESS PLANNING & PERFORMANC,RL500,FEES FOR SERVICES RECEIVED,5350,2016-02-10,2016-02-09,TRAINLINE,03332 022 222,REDACTED,471565******3318,4112,PASSENGER RAILWAYS,73.54,Pound Sterling (826),1,73.54,Debit,74998866040605681235918,2016-03-02,GLOUCESTER CC
Gloucester City Council,23UE,BUSINESS PLANNING & PERFORMANC,RL500,PUBLIC TRANSPORTATION,4061,2016-02-11,2016-02-10,CHELTENHAM COUNCIL,CAR PARKING,REDACTED,471565******3318,9399,GOVERNMENT SERVICES NOT ELSEWHERE CLASSIFIED,5.5,Pound Sterling (826),1,5.5,Debit,74579156042008276741989,2016-03-02,GLOUCESTER CC
Gloucester City Council,23UE,FINANCIAL SERVICES,RT200,VOCATIONAL TRAINING,2970,2016-02-03,2016-02-02,FTC ECOM,INTERNET,REDACTED,471565******5409,8299,SCHOOLS AND EDUCATIONAL SERVICES NOT ELSEWHERE CLASSIFIED,674,Pound Sterling (826),1,674,Debit,74916776034000071985645,2016-03-02,GLOUCESTER CC
Gloucester City Council,23UE,DOG WARDEN,HE400,VEHICLE LICENCES,4015,2016-02-05,2016-02-04,HMCOURTS-SERVICE.G,1452420100,REDACTED,471565******5409,9222,FINES,3447,Pound Sterling (826),1,3447,Debit,74579156036007977532919,2016-03-02,GLOUCESTER CC
Gloucester City Council,23UE,CLIENT REVS & BENS CONTRACT,RT240,COURT FEES,5358,2016-02-08,2016-02-04,DVLA DUP REG DOC,0870 2400 010,REDACTED,471565******5409,9399,GOVERNMENT SERVICES NOT ELSEWHERE CLASSIFIED,25,Pound Sterling (826),1,25,Debit,74579156037008175955745,2016-03-02,GLOUCESTER CC
Gloucester City Council,23UE,DEVELOPMENT MANAGEMENT,PT200,PENALTIES & FINES,5956,2016-02-11,2016-02-10,GLO'SHIRE CC WEB PCN,UXBRIDGE,REDACTED,471565******5409,7523,AUTOMOBILE PARKING LOTS AND GARAGES,25,Pound Sterling (826),1,25,Debit,74698166042060065481660,2016-03-02,GLOUCESTER CC
Gloucester City Council,23UE,BUSINESS TRANSFORMATION & TECH,RT700,COMPUTER HARDWARE <5000,5420,2016-02-15,2016-02-14,Amazon UK Retail,AMAZON.CO.UK,REDACTED,471565******5409,5969,ALL OTHER DIRECT MARKETERS,24.99,Pound Sterling (826),1,24.99,Debit,74313226045000888034068,2016-03-02,GLOUCESTER CC
Gloucester City Council,23UE,FINANCIAL SERVICES,RT200,PUBLIC TRANSPORTATION,4061,2016-02-19,2016-02-17,GWR WEBSALES ECOM,SWINDON,REDACTED,471565******5409,4112,PASSENGER RAILWAYS,76.8,Pound Sterling (826),1,76.8,Debit,74424716048160332404300,2016-03-02,GLOUCESTER CC
Gloucester City Council,23UE,HEALTH ADMINISTRATION,HA200,VOCATIONAL TRAINING,2970,2016-02-19,2016-02-18,ENVESCA LTD,GLOUCESTER,REDACTED,471565******5409,8299,SCHOOLS AND EDUCATIONAL SERVICES NOT ELSEWHERE CLASSIFIED,456,Pound Sterling (826),1,456,Debit,74745106050020076078697,2016-03-02,GLOUCESTER CC
